bitfinex/quotes_ETHUSD_20240630
["timestamp","ask_amount","ask_price","bid_price","bid_amount"]
[1719707580527,18.2509,3390.3,3390.0,0.855]
[1719707580813,0.04804472,3390.2,3390.0,0.855]
[1719707581117,18.2509,3390.3,3390.0,0.855]
[1719707581342,0.04804472,3390.2,3390.0,0.855]
[1719707581798,18.2509,3390.3,3390.0,0.855]
[1719707582062,0.04800714,3390.1,3390.0,0.855]
[1719707582226,18.2509,3390.3,3390.0,0.855]
[1719707582728,7.18265479,3390.2,3389.7,3.855]
[1719707582932,0.04805479,3390.2,3389.9,0.855]
[1719707583131,18.2509,3390.3,3389.9,0.855]
[1719707583320,0.04805479,3390.2,3389.9,0.855]
[1719707583520,18.2509,3390.3,3389.9,0.855]
[1719707583757,0.04805479,3390.2,3389.9,0.855]
[1719707584179,18.2509,3390.3,3389.9,0.855]
[1719707584379,0.0480172,3390.1,3389.9,0.855]
[1719707584580,18.2509,3390.3,3389.9,0.855]
[1719707584724,0.04797961,3390.0,3389.9,0.855]
[1719707585060,0.04797961,3390.0,3389.9,1.405]
[1719707585260,18.2509,3390.2,3389.9,1.405]
[1719707585459,0.0480172,3390.1,3389.9,1.405]
[1719707591236,18.2989172,3390.1,3389.9,1.405]
[1719707594462,25.4335172,3390.1,3389.9,1.405]
[1719707595002,25.4335172,3390.1,3389.6,3.0]
[1719707595287,25.4335172,3390.1,3389.7,0.855]
[1719707597204,7.1826172,3390.1,3389.7,0.855]
[1719707599221,7.1826172,3390.1,3389.9,0.855]
[1719707599553,0.0480172,3390.1,3389.9,0.855]
[1719707599880,7.4508,3390.4,3390.0,0.55]
[1719707600078,7.4508,3390.4,3390.2,0.855]
[1719707600278,25.7017,3390.4,3390.2,0.855]
[1719707601205,25.7017,3390.4,3389.8,3.0]
[1719707601408,25.7017,3390.4,3389.2,1.181802]
[1719707601409,25.7017,3390.4,3389.9,0.855]
[1719707602831,25.7017,3390.4,3390.1,0.855]
[1719707604396,25.7017,3390.4,3390.3,0.855]
[1719707606063,7.4508,3390.4,3390.3,0.855]
[1719707607669,25.5359,3390.8,3390.3,0.855]
[1719707610857,0.04760268,3390.7,3390.3,0.855]
[1719707611346,0.0475651,3390.6,3390.3,0.855]
[1719707611491,25.5359,3390.8,3390.3,0.855]
[1719707611690,0.04752753,3390.5,3390.3,0.855]
[1719707611887,25.5359,3390.8,3390.3,0.855]
[1719707612119,0.04656373,3390.4,3390.3,0.855]
[1719707612335,25.5359,3390.8,3390.3,0.855]
[1719707612492,0.04656373,3390.4,3390.3,0.855]
[1719707612710,25.5359,3390.8,3390.3,0.855]
[1719707612917,0.04656373,3390.4,3390.3,0.855]
[1719707613248,25.5359,3390.8,3390.3,0.855]
[1719707613458,0.04656373,3390.4,3390.3,0.855]
[1719707613588,25.5359,3390.8,3389.9,3.0]
[1719707613794,0.04656373,3390.4,3390.2,0.855]
[1719707614152,0.04652615,3390.3,3390.2,0.855]
[1719707614328,0.04652615,3390.3,3390.2,1.405]
[1719707614512,25.5359,3390.8,3390.2,1.405]
[1719707614720,0.04652615,3390.3,3390.2,1.405]
[1719707614893,25.5359,3390.8,3390.2,1.405]
[1719707615094,0.04652615,3390.3,3390.2,1.405]
[1719707615360,25.5359,3390.8,3390.2,1.405]
[1719707615500,0.04652615,3390.3,3390.2,1.405]
[1719707615700,25.5359,3390.8,3390.2,1.405]
[1719707615903,0.04652615,3390.3,3390.2,1.405]
[1719707616103,25.5359,3390.8,3390.2,1.405]
[1719707616302,0.04652615,3390.3,3390.2,1.405]
[1719707616608,25.5359,3390.8,3389.9,3.0]
[1719707616803,0.0465125,3390.3,3390.1,0.855]
[1719707617012,6.9837,3390.4,3390.1,0.855]
[1719707617244,0.04646128,3390.2,3390.1,0.855]
[1719707617455,6.9837,3390.4,3390.1,0.855]
[1719707617629,0.04644763,3390.2,3390.1,0.855]
[1719707617943,0.04643399,3390.2,3390.1,0.855]
[1719707618148,6.9837,3390.4,3390.1,0.855]
[1719707618344,0.04647157,3390.3,3390.1,0.855]
[1719707619039,0.04647157,3390.3,3389.9,3.855]
[1719707619246,0.04647157,3390.3,3389.9,0.855]
[1719707619548,0.04647157,3390.3,3390.1,0.855]
[1719707620519,6.9837,3390.2,3389.6,3.855]
[1719707620845,0.0463768,3390.1,3389.6,0.855]
[1719707622419,0.0463768,3390.1,3389.8,0.855]
[1719707624158,18.2972768,3390.1,3389.8,0.855]
[1719707626758,18.2972768,3390.1,3390.0,0.855]
[1719707627344,18.2972768,3390.1,3389.8,0.855]
[1719707629122,18.2972768,3390.1,3390.0,0.855]
[1719707629952,0.0463768,3390.1,3390.0,0.855]
[1719707630159,18.2509,3390.3,3390.0,0.855]
[1719707630456,0.04638511,3390.2,3390.0,0.855]
[1719707630852,18.2509,3390.3,3390.0,0.855]
[1719707631058,0.04634752,3390.1,3390.0,0.855]
[1719707631234,18.2509,3390.3,3390.0,0.855]
[1719707631430,0.04632746,3390.1,3390.0,0.855]
[1719707631965,18.2509,3390.3,3390.0,0.855]
[1719707632263,0.04636504,3390.2,3390.0,0.855]
[1719707632626,18.2509,3390.3,3390.0,0.855]
[1719707633138,0.04636504,3390.2,3390.0,0.855]
[1719707633450,18.2509,3390.3,3390.0,0.855]
[1719707633644,0.04634006,3390.1,3390.0,0.855]
[1719707633828,18.2509,3390.3,3390.0,1.405]
[1719707634036,0.04634006,3390.1,3390.0,1.405]
[1719707634229,18.2509,3390.3,3390.0,1.405]
[1719707634464,0.04631914,3390.1,3390.0,1.405]
[1719707634945,18.2509,3390.3,3390.0,1.405]
[1719707635148,0.04635673,3390.2,3390.0,1.405]
[1719707635332,18.2509,3390.3,3390.0,1.405]
[1719707635686,0.04635673,3390.2,3390.0,1.405]
[1719707635845,18.29725673,3390.2,3390.0,1.405]
[1719707636043,18.2509,3390.2,3390.0,1.405]
[1719707636246,0.04631914,3390.1,3390.0,1.405]
[1719707641850,0.04631914,3390.1,3390.0,0.55]
[1719707641851,18.29721914,3390.1,3390.0,0.55]
[1719707642061,18.29721914,3390.1,3389.9,0.55]
[1719707643970,18.29721914,3390.1,3389.8,3.0]
[1719707644148,25.06241914,3390.1,3389.4,3.0]
[1719707644350,6.81151914,3390.1,3389.4,3.0]
[1719707644657,0.68115191,3390.0,3389.4,3.0]
[1719707644856,0.68115191,3390.0,3389.3,0.855]
[1719707645097,0.04631719,3389.9,3389.3,0.855]
[1719707646549,6.7652,3390.1,3389.3,0.855]
[1719707646795,0.04632323,3390.0,3389.3,0.855]
[1719707647205,0.04632323,3390.0,3389.4,0.855]
[1719707662981,0.04632323,3390.0,3389.6,0.855]
[1719707664701,0.04632323,3390.0,3389.9,0.855]
[1719707665010,6.86564358,3390.4,3389.9,0.855]
[1719707665308,0.04640192,3390.3,3390.1,0.855]
[1719707665887,7.044,3390.6,3390.1,0.855]
[1719707666089,0.04637948,3390.2,3390.1,0.855]
[1719707666290,7.044,3390.6,3390.1,0.855]
[1719707666610,0.04637948,3390.2,3390.1,0.855]
[1719707666907,7.044,3390.6,3390.1,0.855]
[1719707667116,0.04637948,3390.2,3390.1,0.855]
[1719707667317,7.044,3390.6,3390.1,0.855]
[1719707667503,0.04637948,3390.2,3390.1,0.855]
[1719707667698,7.044,3390.6,3390.1,0.855]
[1719707667905,0.04637948,3390.2,3390.1,0.855]
[1719707668105,7.044,3390.6,3390.1,0.855]
[1719707668279,0.04637948,3390.2,3390.1,0.855]
[1719707668487,7.044,3390.6,3390.1,0.855]
[1719707668809,25.2949,3390.6,3390.1,0.855]
[1719707668977,0.04649222,3390.5,3390.1,0.855]
[1719707674697,18.29739222,3390.5,3390.1,0.855]
[1719707679836,18.29739222,3390.5,3390.3,0.855]
[1719707680773,0.04649222,3390.5,3390.3,0.855]
[1719707681095,18.2509,3390.7,3390.3,0.855]
[1719707681598,0.04657741,3390.6,3390.3,0.855]
[1719707686618,18.29747741,3390.6,3390.3,0.855]
[1719707692503,0.04657741,3390.6,3390.3,0.855]
[1719707694358,0.04657741,3390.6,3390.0,3.0]
[1719707694359,0.04657741,3390.6,3390.1,0.855]
[1719707694507,0.04657741,3390.6,3390.2,0.855]
[1719707696347,0.04657741,3390.6,3390.4,0.855]
[1719707698423,18.29747741,3390.6,3390.4,0.855]
[1719707700266,18.29747741,3390.6,3390.2,3.0]
[1719707700553,18.29747741,3390.6,3390.4,0.855]
[1719707710553,18.2509,3390.5,3390.4,0.855]
[1719707711054,18.29592195,3390.5,3390.4,0.855]
[1719707716339,0.04502195,3390.5,3390.4,0.855]
[1719707716761,18.2509,3391.0,3390.4,0.855]
[1719707716959,0.04505099,3390.5,3390.4,0.855]
[1719707717162,18.2509,3391.0,3390.4,0.855]
[1719707717665,0.0435866,3390.9,3390.4,0.855]
[1719707722335,18.2944866,3390.9,3390.4,0.855]
[1719707726877,18.2944866,3390.9,3390.6,0.855]
[1719707728268,18.2509,3390.8,3390.6,0.855]
[1719707728487,0.04343208,3390.7,3390.6,0.855]
[1719707728694,18.2509,3390.8,3390.6,0.855]
[1719707728907,0.04343208,3390.7,3390.6,0.855]
[1719707729266,18.2509,3390.8,3390.6,0.855]
[1719707729615,0.04343208,3390.7,3390.6,0.855]
[1719707729904,18.2509,3390.8,3390.6,0.855]
[1719707730208,0.04343208,3390.7,3390.6,0.855]
[1719707730570,18.2509,3390.8,3390.6,0.855]
[1719707730770,0.04343208,3390.7,3390.6,0.855]
[1719707731183,18.2509,3390.8,3390.6,0.855]
[1719707731471,0.04343208,3390.7,3390.6,0.855]
[1719707731801,18.2509,3390.8,3390.6,0.855]
[1719707732014,0.04343208,3390.7,3390.6,0.855]
[1719707732222,0.09922673,3390.7,3390.6,0.855]
[1719707732370,18.2509,3390.8,3390.3,0.55]
[1719707732707,0.09922673,3390.7,3390.5,0.855]
[1719707733203,18.2509,3390.8,3390.5,0.855]
[1719707733414,0.0991971,3390.6,3390.5,0.855]
[1719707733614,18.2509,3390.8,3390.5,0.855]
[1719707733795,0.0991971,3390.6,3390.5,0.855]
[1719707733984,18.2509,3390.8,3390.5,0.855]
[1719707734184,0.0991971,3390.6,3390.5,0.855]
[1719707737884,0.0991971,3390.6,3390.3,0.55]
[1719707738080,0.0991971,3390.6,3390.5,0.855]
[1719707740206,18.3500971,3390.6,3390.5,0.855]
[1719707744478,18.3500971,3390.6,3390.3,0.55]
[1719707744709,18.3500971,3390.6,3390.4,0.855]
[1719707746200,18.2509,3390.5,3390.4,0.855]
[1719707746605,18.35007126,3390.5,3390.2,3.855]
[1719707746788,18.35007126,3390.5,3390.2,0.855]
[1719707752189,18.2509,3390.4,3390.2,0.855]
[1719707752694,0.09909435,3390.3,3390.2,0.855]
[1719707752899,18.34999435,3390.3,3390.2,0.855]
[1719707758194,0.09909435,3390.3,3390.2,0.855]
[1719707758615,18.2509,3390.5,3390.2,0.855]
[1719707758926,18.2509,3390.5,3390.4,0.855]
[1719707759228,18.35006623,3390.5,3390.4,0.855]
[1719707761801,18.35006623,3390.5,3389.9,3.0]
[1719707762001,18.35006623,3390.5,3390.3,0.855]
[1719707764037,18.2509,3390.4,3390.3,0.855]
[1719707764405,18.35001639,3390.4,3390.3,0.855]
[1719707787826,18.35001639,3390.4,3390.3,8.4415]
[1719707788033,18.35001639,3390.4,3390.3,11.4415]
[1719707788242,18.35001639,3390.4,3390.3,10.5865]
[1719707788442,18.35001639,3390.4,3390.3,11.4415]
[1719707790682,18.35001639,3390.4,3390.3,10.5865]
[1719707790834,18.35001639,3390.4,3390.3,3.55]
[1719707791146,18.35001639,3390.4,3390.3,3.855]
[1719707793070,18.35001639,3390.4,3390.3,0.855]
[1719707797167,18.35001639,3390.4,3389.8,1.181595]
[1719707797168,20.87334803,3390.4,3389.8,1.181595]
[1719707797401,6.8866,3390.3,3389.8,0.855]
[1719707797714,2.7759948,3390.2,3389.8,0.855]
[1719707798060,0.09033658,3390.1,3389.8,0.855]
[1719707798866,0.09033658,3390.1,3390.0,0.855]
[1719707799396,6.8866,3390.3,3390.0,0.855]
[1719707799581,0.09028868,3390.1,3390.0,0.855]
[1719707799900,25.1375,3390.3,3390.0,0.855]
[1719707800103,0.09028868,3390.1,3390.0,0.855]
[1719707800702,25.82616,3390.3,3390.0,0.855]
[1719707800865,0.09028868,3390.1,3390.0,0.855]
[1719707801202,0.09030834,3390.1,3390.0,0.855]
[1719707801363,25.1375,3390.3,3390.0,0.855]
[1719707801563,0.09034428,3390.2,3390.0,0.855]
[1719707801798,25.1375,3390.3,3390.0,0.855]
[1719707802098,0.09030834,3390.1,3390.0,0.855]
[1719707802300,25.1375,3390.3,3390.0,0.855]
[1719707802495,0.09030834,3390.1,3390.0,0.855]
[1719707802695,18.2509,3390.3,3390.0,0.855]
[1719707802896,18.2509,3390.3,3390.2,0.855]
[1719707805704,18.34120283,3390.3,3390.2,0.855]
[1719707806012,0.09030283,3390.3,3390.2,0.855]
[1719707806512,18.2509,3390.6,3390.2,0.855]
[1719707806738,0.09030283,3390.3,3390.1,0.55]
[1719707806899,18.2509,3390.6,3390.2,0.855]
[1719707807211,18.2509,3390.6,3390.4,0.855]
[1719707811780,18.2509,3390.5,3390.4,0.855]
[1719707817734,18.2509,3390.5,3390.4,7.7337]
[1719707817897,18.2509,3390.5,3390.4,11.2837]
[1719707817898,17.71269234,3390.5,3390.4,11.2837]
[1719707818103,17.32674413,3390.5,3390.4,11.5618786]
[1719707820612,17.41708118,3390.5,3390.4,11.5618786]
[1719707823728,0.09033705,3390.5,3390.4,12.7431986]
[1719707823890,0.09033705,3390.5,3390.4,5.3144986]
[1719707824097,7.2687,3390.9,3390.4,2.03632]
[1719707824452,7.2687,3390.9,3390.8,0.855]
[1719707826539,17.32674413,3391.0,3390.8,0.855]
[1719707826707,3.112,3392.3,3390.8,0.855]
[1719707826708,7.2687,3392.1,3390.8,0.855]
[1719707826913,7.2687,3392.1,3391.3,0.855]
[1719707827502,7.2687,3392.1,3391.5,0.855]
[1719707827802,7.2687,3391.9,3391.5,0.855]
[1719707829210,7.2687,3391.9,3390.5,3.0]
[1719707829211,7.2687,3391.9,3391.2,0.855]
[1719707829434,7.2687,3391.9,3391.4,0.855]
[1719707831100,7.2687,3391.9,3390.5,3.0]
[1719707831325,8.33789,3391.9,3391.1,0.855]
[1719707831530,8.33789,3391.9,3391.3,0.855]
[1719707834338,8.33789,3391.9,3391.6,0.855]
[1719707834646,8.33789,3391.9,3390.9,7.0318]
[1719707834647,7.2687,3391.9,3391.8,0.855]
[1719707835059,7.35350628,3391.9,3391.8,0.855]
[1719707835218,8.08885691,3391.9,3391.8,0.855]
[1719707838363,8.08885691,3391.9,3391.6,0.855]
[1719707838527,7.35350628,3391.9,3391.6,0.855]
[1719707840338,7.35350628,3391.9,3391.0,3.0]
[1719707840547,7.35350628,3391.9,3391.2,0.855]
[1719707840728,7.50225063,3391.8,3391.2,0.855]
[1719707841135,6.7669,3391.6,3391.2,0.855]
[1719707841365,6.7669,3391.6,3390.1,6.7765]
[1719707841568,6.7669,3391.4,3390.8,0.855]
[1719707841864,0.08170317,3391.3,3390.8,0.855]
[1719707847160,0.08170317,3391.3,3390.6,0.855]
[1719707847554,6.7669,3391.4,3390.6,0.855]
[1719707847757,7.57611351,3391.4,3390.6,0.855]
[1719707847937,6.7669,3391.2,3390.2,3.0]
[1719707848140,6.7669,3391.2,3390.5,0.855]
[1719707848337,6.84845819,3391.1,3390.5,0.855]
[1719707849847,0.08155819,3391.1,3390.7,0.855]
[1719707850147,0.08155819,3391.1,3390.7,3.855]
[1719707850343,6.7669,3391.4,3390.7,3.855]
[1719707850540,6.7669,3391.4,3390.9,0.855]
[1719707850979,0.08162499,3391.3,3390.9,0.855]
[1719707863257,0.08162499,3391.3,3390.7,3.855]
[1719707864501,0.08162499,3391.3,3390.7,3.91398222]
[1719707864655,0.08162499,3391.3,3390.8,0.55]
[1719707864856,14.5916,3391.5,3390.8,0.55]
[1719707865556,0.07631447,3391.4,3390.8,0.55]
[1719707866492,0.07631447,3391.4,3391.0,0.855]
[1719707866964,0.07631447,3391.4,3391.2,0.855]
[1719707869394,0.07631447,3391.4,3391.0,0.855]
[1719707870916,0.07631447,3391.4,3391.1,0.55]
[1719707877374,20.00631447,3391.4,3391.1,0.55]
[1719707878712,20.00631447,3391.4,3391.2,0.855]
[1719707883300,19.93,3391.3,3391.2,0.855]
[1719707883710,20.00635992,3391.3,3391.2,0.855]
[1719707884814,20.00635992,3391.3,3391.2,1.405]
[1719707890222,20.00635992,3391.3,3391.2,8.6433]
[1719707890427,20.00635992,3391.3,3391.2,11.6433]
[1719707890853,19.41758573,3391.3,3391.2,13.70746]
[1719707891186,19.41758573,3391.3,3391.2,11.6433]
[1719707891496,19.41758573,3391.3,3391.2,4.405]
[1719707891697,19.41758573,3391.3,3391.2,1.405]
[1719707891896,19.41758573,3391.3,3391.2,0.55]
[1719707892102,19.41758573,3391.3,3391.2,0.855]
[1719707892304,19.41758573,3391.3,3391.2,1.405]
[1719707892846,19.41758573,3391.3,3391.2,0.55]
[1719707893136,19.41758573,3391.3,3391.2,0.855]
[1719707893299,19.41758573,3391.3,3391.2,1.405]
[1719707894392,19.41758573,3391.3,3391.0,3.0]
[1719707894621,19.41758573,3391.3,3391.1,0.55]
[1719707894825,19.41758573,3391.3,3391.2,0.855]
[1719707901252,0.07635992,3391.3,3391.2,0.855]
[1719707901552,19.34122581,3391.5,3391.2,0.855]
[1719707901713,0.07477395,3391.3,3391.0,3.0]
[1719707901913,19.34122581,3391.5,3391.2,0.855]
[1719707902214,19.34122581,3391.5,3391.4,0.855]
[1719707904023,19.34122581,3391.5,3391.4,8.0683]
[1719707904224,19.34122581,3391.5,3391.4,11.6183]
[1719707907256,7.33,3391.8,3391.4,11.6183]
[1719707907456,7.33,3391.8,3391.7,0.855]
[1719707907632,19.34122581,3392.1,3391.7,1.405]
[1719707907836,19.34122581,3392.1,3392.0,0.855]
[1719707910743,19.41098743,3392.1,3392.0,0.855]
[1719707913569,19.41098743,3392.1,3391.5,3.0]
[1719707913774,19.41098743,3392.1,3392.0,0.855]
[1719707916159,7.3517,3392.0,3391.5,3.0]
[1719707916356,7.3517,3392.0,3391.9,0.855]
[1719707919165,26.69292581,3392.0,3391.9,0.855]
[1719707919860,26.69292581,3392.0,3391.4,0.55]
[1719707920061,26.69292581,3392.0,3391.9,0.855]
[1719707920384,26.69292581,3392.0,3391.4,0.55]
[1719707920588,7.2591,3391.9,3391.0,3.0]
[1719707920788,26.60032581,3391.9,3391.7,0.855]
[1719707920990,19.34122581,3391.8,3391.7,0.855]
[1719707925789,19.41100895,3391.8,3391.7,0.855]
[1719707931006,0.06978314,3391.8,3391.7,0.855]
[1719707931202,0.06978314,3391.8,3391.5,3.0]
[1719707931408,7.2591,3391.9,3391.7,0.855]
[1719707936925,26.60032581,3391.9,3391.7,0.855]
[1719707938836,19.34122581,3391.9,3391.7,0.855]
[1719707940810,0.0697619,3391.8,3391.7,0.855]
[1719707942812,19.41098771,3391.8,3391.4,1.181033]
[1719707943011,19.41098771,3391.8,3391.7,0.855]
[1719707948064,19.41098771,3391.8,3391.7,7.828]
[1719707948243,0.0697619,3391.8,3391.7,10.828]
[1719707948441,19.34122581,3392.3,3391.7,11.378]
[1719707948629,19.34122581,3392.3,3392.2,0.855]
[1719707951075,19.34122581,3392.3,3392.2,3.855]
[1719707953685,19.34122581,3392.3,3392.2,0.855]
[1719707954679,26.17512581,3392.3,3392.2,0.855]
[1719707955878,26.24176073,3392.3,3392.2,0.855]
[1719707957237,27.81619891,3392.3,3391.6,3.0]
[1719707957437,26.24176073,3392.3,3392.2,0.855]
[1719707957644,26.24176073,3392.3,3391.9,0.855]
[1719707957843,19.34122581,3392.2,3391.9,0.855]
[1719707958278,0.06653325,3392.1,3391.9,0.855]
[1719707962347,0.06653325,3392.1,3391.9,3.855]
[1719707963875,19.40775906,3392.1,3391.9,3.855]
[1719707969783,19.34122581,3392.0,3391.9,3.855]
[1719707970103,19.40534108,3392.0,3391.9,3.855]
[1719707975809,0.06411527,3392.0,3391.9,3.855]
[1719707975959,19.34122581,3392.5,3391.9,3.855]
[1719707976156,19.34122581,3392.5,3392.4,0.855]
[1719707977278,21.70828907,3392.5,3392.4,0.855]
[1719707978680,19.34122581,3392.5,3392.4,0.855]
[1719707979115,19.34122581,3392.5,3391.9,3.0]
[1719707979394,19.34122581,3392.5,3392.4,0.855]
[1719707980707,19.34122581,3392.5,3392.2,0.855]
[1719707981575,19.34122581,3392.4,3392.2,0.855]
[1719707982776,19.34122581,3392.4,3392.0,0.855]
[1719707984159,19.34122581,3392.4,3391.7,3.0]
[1719707984160,6.9673,3392.3,3391.7,3.0]
[1719707984364,6.9673,3392.2,3391.6,0.855]
[1719707985599,0.06424119,3392.1,3391.6,0.855]
[1719707987714,19.405467,3392.1,3391.6,0.855]
[1719707990940,19.405467,3392.1,3391.3,4.181055]
[1719707990941,6.9673,3391.9,3391.3,4.181055]
[1719707991108,6.9673,3391.9,3391.4,0.855]
[1719707991287,0.06404149,3391.8,3391.4,0.855]
[1719707994835,0.06404149,3391.8,3391.2,3.0]
[1719707995138,19.34122581,3392.0,3391.6,0.855]
[1719707995298,0.06398771,3391.7,3391.6,0.855]
[1719707995700,0.06398771,3391.7,3391.6,8.5003]
[1719707995902,19.34122581,3392.0,3391.6,11.5003]
[1719707996104,19.34122581,3392.0,3391.9,0.855]
[1719707997842,19.34122581,3392.0,3391.9,7.8217]
[1719707998034,19.34122581,3392.0,3391.9,3.855]
[1719707998339,19.34122581,3392.0,3391.9,0.855]
[1719708000503,19.4054017,3392.0,3391.9,0.855]
[1719708010470,19.4054017,3392.0,3391.7,3.55]
[1719708010670,19.4054017,3392.0,3391.9,0.855]
[1719708014563,0.06417589,3392.0,3391.9,0.855]
[1719708014770,19.34122581,3392.4,3391.9,0.855]
[1719708014922,19.34122581,3392.4,3392.3,0.855]
[1719708015364,20.12791257,3392.4,3392.3,0.855]
[1719708015559,20.18105608,3392.4,3392.3,0.855]
[1719708021560,19.39436932,3392.4,3392.3,0.855]
[1719708032263,19.42486377,3392.4,3392.3,0.855]
[1719708034860,19.42486377,3392.4,3391.7,3.55]
[1719708035186,19.42486377,3392.4,3392.3,0.855]
[1719708036974,19.42486377,3392.4,3391.7,3.55]
[1719708037151,19.42486377,3392.4,3392.3,0.855]
[1719708038175,22.05549015,3392.4,3392.3,0.855]
[1719708039271,22.05549015,3392.4,3391.7,3.55]
[1719708039564,19.42486377,3392.4,3392.3,0.855]
[1719708054727,7.4511,3392.3,3392.0,3.855]
[1719708054902,7.4511,3392.3,3392.1,3.0]
[1719708055105,0.08261035,3392.2,3392.0,0.855]
[1719708056223,19.42383616,3392.2,3392.0,0.855]
[1719708060933,19.42383616,3392.2,3391.8,0.855]
[1719708061862,22.11132978,3392.2,3391.6,3.0]
[1719708062003,22.11132978,3392.2,3390.8,1.53987625]
[1719708062004,22.11132978,3392.2,3391.5,0.855]
[1719708062202,19.34122581,3392.1,3391.5,0.855]
[1719708062455,0.0825395,3392.0,3391.5,0.855]
[1719708064430,0.0825395,3392.0,3391.3,3.0]
[1719708064730,0.0825395,3392.0,3391.4,0.855]
[1719708064731,7.0317,3391.9,3391.4,0.855]
[1719708065133,0.08243384,3391.8,3391.4,0.855]
[1719708068118,19.42365965,3391.8,3391.4,0.855]
[1719708069220,19.42365965,3391.8,3391.6,0.855]
[1719708069640,19.42365965,3391.8,3391.6,8.2651]
[1719708069827,19.42365965,3391.8,3391.7,3.0]
[1719708077325,19.42365965,3391.8,3391.4,0.855]
[1719708079368,19.42365965,3391.8,3391.1,3.0]
[1719708079723,7.1021,3391.7,3391.1,3.0]
[1719708080039,0.08068342,3391.6,3390.7,7.9302]
[1719708080236,19.42190923,3391.6,3390.9,0.855]
[1719708080437,22.21168312,3391.6,3390.9,0.855]
[1719708080639,19.34122581,3391.5,3390.7,7.9302]
[1719708080959,7.1021,3391.3,3390.3,7.0752]
[1719708081159,7.1021,3391.3,3390.4,0.855]
[1719708081361,0.08061953,3391.2,3390.3,0.855]
[1719708081655,1.01872564,3391.1,3390.6,1.181307]
[1719708081860,1.01872564,3391.1,3390.3,0.855]
[1719708082157,0.08050062,3391.0,3390.3,0.855]
[1719708082524,0.08050062,3391.0,3390.5,0.855]
[1719708082935,7.1021,3391.3,3390.5,0.855]
[1719708083131,0.0802109,3390.9,3390.7,0.855]
[1719708083333,19.34122581,3390.9,3390.7,0.855]
[1719708083544,0.08027902,3390.8,3390.7,0.855]
[1719708089060,19.42150483,3390.8,3390.7,0.855]
[1719708096281,19.42150483,3390.8,3390.7,1.405]
[1719708100857,0.08027902,3390.8,3390.7,1.405]
[1719708101079,19.34122581,3391.2,3390.7,1.405]
[1719708101282,0.08030432,3390.8,3390.7,1.405]
[1719708101483,19.34122581,3391.2,3390.7,1.405]
[1719708101660,0.08030432,3390.8,3390.7,1.405]
[1719708101849,19.34122581,3391.2,3390.7,1.405]
[1719708102044,0.08040939,3391.1,3390.7,1.405]
[1719708104262,0.08040939,3391.1,3390.9,0.855]
[1719708106761,19.4216352,3391.1,3390.9,0.855]
[1719708109097,19.4216352,3391.1,3390.5,3.0]
[1719708109323,19.4216352,3391.1,3390.7,0.855]
[1719708112892,19.34122581,3391.0,3390.7,0.855]
[1719708113298,0.08037044,3390.9,3390.7,0.855]
[1719708118796,19.42159625,3390.9,3390.7,0.855]
[1719708121399,19.42159625,3390.9,3390.8,6.7541]
[1719708121874,19.42159625,3390.9,3390.8,9.7541]
[1719708122211,19.42159625,3390.9,3390.8,3.0]
[1719708122409,19.42159625,3390.9,3390.7,3.855]
[1719708124817,0.08037044,3390.9,3390.7,3.855]
[1719708125121,19.34122581,3391.5,3390.7,3.855]
[1719708125483,0.08055319,3391.4,3390.7,3.855]
[1719708125815,2.09879579,3391.3,3390.7,3.855]
[1719708126020,0.08055319,3391.4,3390.7,3.855]
[1719708126220,0.08048315,3391.2,3390.9,0.855]
[1719708126409,0.08047645,3391.3,3391.1,0.855]
[1719708126608,19.34122581,3391.5,3391.1,3.855]
[1719708126784,19.34122581,3391.5,3391.4,0.855]
[1719708133219,19.34122581,3391.5,3391.4,7.6091]
[1719708133423,19.34122581,3391.9,3391.4,10.6091]
[1719708133609,19.34122581,3391.9,3391.7,0.855]
[1719708135724,0.08012359,3391.8,3391.7,0.855]
[1719708136632,19.4213494,3391.8,3391.7,0.855]
[1719708147213,19.3713494,3391.8,3391.7,0.855]
[1719708147412,19.41869877,3391.8,3391.7,0.855]
[1719708151650,19.41869877,3391.8,3391.7,1.405]
[1719708151848,19.41869877,3391.8,3391.7,4.405]
[1719708154563,0.07747296,3391.8,3391.7,4.405]
[1719708154855,19.34122581,3392.0,3391.7,4.405]
[1719708155059,19.34122581,3392.0,3391.9,0.855]
[1719708155224,19.34122581,3392.0,3391.9,1.405]
[1719708160576,19.34122581,3392.3,3391.9,1.405]
[1719708160743,19.34122581,3392.2,3391.9,0.55]
[1719708160944,19.34122581,3392.2,3392.1,0.855]
[1719708161543,19.34122581,3392.2,3391.8,0.55]
[1719708161739,19.34122581,3392.2,3392.1,0.855]
[1719708165650,19.4188738,3392.2,3392.1,0.855]
[1719708180494,26.7341738,3392.2,3391.9,0.855]
[1719708181669,26.7341738,3392.2,3391.4,4.181013]
[1719708181882,26.7341738,3392.2,3391.8,0.855]
[1719708184361,19.34122581,3392.1,3391.8,0.855]
[1719708184674,19.41690654,3392.1,3391.8,0.855]
[1719708189123,19.41690654,3392.1,3391.5,0.55]
[1719708189124,19.41690654,3392.1,3392.0,8.1621]
[1719708189256,19.41690654,3392.1,3392.0,11.1621]
[1719708189463,19.41690654,3392.1,3392.0,11.7121]